bitfinex/quotes_ETHUSD_20251215
["timestamp","ask_amount","ask_price","bid_price","bid_amount"]
[1765812770832,0.561,3012.5,3011.6,0.58047529]
[1765812771030,0.561,3012.5,3011.7,6.64076766]
[1765812771253,0.561,3012.5,3011.7,3.32038383]
[1765812771454,0.77817529,3013.1,3011.7,7.03085357]
[1765812771653,2.837427,3012.9,3011.7,6.64076766]
[1765812771860,0.561,3013.0,3011.7,3.32038383]
[1765812772050,0.4861,3012.8,3011.7,3.32038383]
[1765812772251,0.4861,3012.8,3011.0,0.35250166]
[1765812772252,4.272,3012.7,3011.0,0.35250166]
[1765812772457,0.4861,3012.8,3010.7,0.405504]
[1765812772458,0.561,3012.6,3011.6,3.32042136]
[1765812772762,0.4861,3012.8,3011.7,0.58047529]
[1765812772763,0.561,3012.5,3011.7,0.58047529]
[1765812772970,0.561,3012.5,3010.9,0.002]
[1765812773126,3.31961226,3012.4,3010.9,0.002]
[1765812773333,0.561,3012.3,3011.0,0.2017]
[1765812773531,3.31943486,3012.6,3011.1,0.405504]
[1765812773727,0.561,3012.5,3011.1,0.405504]
[1765812773961,0.561,3012.5,3010.9,0.002]
[1765812774164,3.8054152,3012.7,3011.0,0.2017]
[1765812774364,7.1247304,3012.7,3011.0,0.2017]
[1765812774570,0.561,3012.6,3011.1,0.405504]
[1765812774779,0.561,3012.6,3010.9,0.002]
[1765812774780,21.231196,3012.5,3010.9,0.002]
[1765812775075,6.63944494,3012.3,3010.9,0.002]
[1765812775533,7.12554494,3012.3,3010.9,0.002]
[1765812775729,6.63944494,3012.3,3010.9,0.002]
[1765812775935,22.927567,3012.0,3010.9,0.002]
[1765812776152,6.80423755,3011.9,3010.9,0.002]
[1765812776368,6.80423755,3011.9,3009.0,3.35993036]
[1765812776369,10.690327,3011.0,3009.0,0.03660688]
[1765812776539,10.690327,3011.0,3008.9,3.52512435]
[1765812776540,0.1977,3010.3,3009.6,0.002]
[1765812776869,1.0461,3010.2,3009.6,0.002]
[1765812777039,3.32214876,3010.1,3009.6,0.002]
[1765812777438,0.56,3010.0,3009.6,0.002]
[1765812777650,7.32765642,3010.3,3009.6,0.002]
[1765812777856,0.56,3009.9,3009.6,0.002]
[1765812778032,0.56,3009.8,3009.6,0.002]
[1765812778232,3.32182412,3010.4,3009.6,0.002]
[1765812778233,0.56,3009.7,3009.6,0.002]
[1765812778865,1.0461,3009.7,3009.6,0.002]
[1765812779055,30.405504,3009.4,3008.5,0.002]
[1765812779261,0.98597929,3009.4,3008.5,0.002]
[1765812779436,0.405504,3008.8,3007.2,3.32534244]
[1765812779769,0.56,3008.7,3007.3,0.91300953]
[1765812780064,0.56,3008.7,3007.2,3.32535248]
[1765812780065,0.03660688,3008.3,3007.2,3.32535248]
[1765812780367,0.03660688,3008.3,3006.8,0.002]
[1765812780368,2.0248,3007.2,3006.8,0.002]
[1765812780587,1.0461,3007.1,3006.8,0.002]
[1765812780789,0.4861,3007.1,3006.8,0.002]
[1765812780934,0.56,3007.0,3006.8,0.002]
[1765812781140,4.37173352,3007.0,3006.8,0.002]
[1765812781371,0.405504,3006.7,3005.2,0.002]
[1765812781575,0.98597929,3006.5,3005.2,0.002]
[1765812781863,0.1949,3005.6,3005.2,0.002]
[1765812782068,0.56,3005.5,3005.2,0.002]
[1765812782365,1.0171,3005.5,3005.2,0.002]
[1765812782731,0.1949,3005.6,3005.2,0.002]
[1765812782932,0.4571,3005.5,3005.2,0.002]
[1765812783168,0.56,3005.4,3005.2,0.002]
[1765812783671,1.03757529,3005.3,3004.3,0.002]
[1765812784169,1.0171,3005.2,3004.3,0.002]
[1765812784370,0.56,3005.1,3004.3,0.002]
[1765812784572,1.0171,3005.1,3004.3,0.002]
[1765812784941,0.4571,3005.0,3004.3,0.002]
[1765812785248,0.56,3004.9,3004.3,0.002]
[1765812785456,24.143862,3004.9,3004.3,0.002]
[1765812785662,12.26310429,3004.9,3004.3,0.002]
[1765812785873,19.241246,3003.9,3001.7,3.33144551]
[1765812786161,0.405504,3003.8,3001.7,9.99433653]
[1765812786353,0.58047529,3004.0,3001.8,0.83748863]
[1765812786354,0.4571,3004.0,3001.8,0.83748863]
[1765812786549,0.405504,3003.6,3001.9,1.41632707]
[1765812786751,0.4571,3003.5,3001.9,1.41632707]
[1765812787280,7.06462366,3003.4,3002.0,3.33111259]
[1765812787479,0.4571,3003.3,3002.0,3.33111259]
[1765812787685,0.4571,3003.3,3002.0,9.99333777]
[1765812787841,0.56,3003.2,3002.0,10.21703777]
[1765812788042,0.4571,3004.8,3002.4,0.405504]
[1765812788245,0.56,3004.3,3002.8,10.64758929]
[1765812788551,0.4571,3005.4,3003.3,0.405504]
[1765812788799,0.56,3005.3,3003.3,0.405504]
[1765812788964,0.56,3005.3,3003.4,0.3614]
[1765812789174,0.56,3005.3,3003.6,0.98597929]
[1765812789486,3.3272334,3005.5,3003.8,0.58047529]
[1765812789691,0.56,3005.2,3003.9,1.05681571]
[1765812789846,3.3272334,3005.5,3003.9,1.28051571]
[1765812790042,0.56,3005.4,3003.9,1.28051571]
[1765812790277,1.0171,3005.4,3003.9,1.05681571]
[1765812790579,1.0171,3005.4,3003.8,0.58047529]
[1765812790580,0.405504,3005.3,3003.8,0.58047529]
[1765812790741,0.862604,3005.3,3003.8,0.58047529]
[1765812790939,0.4571,3005.3,3003.8,0.58047529]
[1765812791138,0.56,3005.2,3003.8,0.80417529]
[1765812791376,0.1949,3005.6,3004.0,13.7210832]
[1765812791552,0.56,3005.1,3003.9,3.32898502]
[1765812791755,0.56,3005.1,3003.1,3.55350787]
[1765812791756,0.4571,3005.0,3003.7,3.32920827]
[1765812791959,0.4571,3005.0,3003.9,3.32899879]
[1765812792149,0.58047529,3005.4,3004.0,0.03328894]
[1765812792350,0.56,3005.3,3004.0,0.61376423]
[1765812792654,0.56,3005.2,3004.0,0.80417529]
[1765812792849,0.652,3005.6,3004.1,1.44530908]
[1765812793054,0.652,3005.6,3003.4,0.1377]
[1765812793055,0.58047529,3004.9,3003.4,0.1377]
[1765812793264,5.81825826,3005.3,3002.9,0.04]
[1765812793265,0.58047529,3005.3,3002.9,0.04]
[1765812793585,0.58047529,3005.3,3003.3,0.002]
[1765812793586,0.405504,3003.7,3003.3,0.002]
[1765812793744,0.405504,3003.8,3003.3,0.002]
[1765812793947,0.4571,3004.3,3003.3,0.002]
[1765812794266,0.561,3004.2,3003.3,0.2257]
[1765812794452,3.32847297,3005.3,3003.5,0.405504]
[1765812794642,0.561,3005.2,3003.5,0.405504]
[1765812794848,1.0181,3005.2,3003.5,0.405504]
[1765812795243,1.0181,3005.2,3003.6,0.2237]
[1765812795476,0.001,3005.3,3003.9,0.58047529]
[1765812795678,0.001,3005.3,3004.0,0.66249294]
[1765812795865,0.03660688,3006.3,3005.2,0.1377]
[1765812796065,0.59760688,3006.3,3005.4,0.58047529]
[1765812796378,0.59760688,3006.3,3005.2,0.1377]
[1765812796769,0.03660688,3006.3,3005.3,0.628204]
[1765812796968,0.03660688,3006.3,3005.6,0.405504]
[1765812797295,0.03660688,3006.3,3006.0,0.405504]
[1765812797494,0.03660688,3006.3,3006.2,0.98597929]
[1765812797843,0.03660688,3006.3,3006.2,1.20867929]
[1765812798078,0.001,3006.6,3006.2,1.99486236]
[1765812798279,0.001,3006.6,3006.5,0.405504]
[1765812798480,0.001,3006.6,3006.5,30.98597929]
[1765812798653,0.562,3007.6,3006.6,0.58047529]
[1765812798847,0.4571,3009.1,3006.6,0.58047529]
[1765812798848,0.03660688,3010.2,3007.5,30.98597929]
[1765812799100,0.561,3009.9,3008.4,0.405504]
[1765812799392,0.561,3009.9,3008.3,0.58047529]
[1765812799393,0.561,3009.9,3009.4,9.96876453]
[1765812799550,0.03660688,3010.2,3009.5,0.58047529]
[1765812799914,0.03660688,3010.2,3009.5,0.80217529]
[1765812800067,0.562,3011.4,3009.9,0.405504]
[1765812800265,3.265544,3011.3,3009.6,0.92783183]
[1765812800573,0.562,3011.4,3009.5,0.58047529]
[1765812800574,0.58047529,3011.2,3009.5,0.58047529]
[1765812800773,0.562,3011.4,3009.5,0.58047529]
[1765812800774,8.864265,3011.3,3009.5,0.58047529]
[1765812801199,27.966279,3010.9,3008.7,0.405504]
[1765812801397,5.86158587,3011.3,3008.6,0.2052]
[1765812801398,13.28462304,3011.0,3008.6,0.2052]
[1765812801703,0.405504,3010.4,3008.7,0.58047529]
[1765812801906,0.405504,3010.1,3008.6,0.58047529]
[1765812802107,0.405504,3010.1,3008.7,0.58047529]
[1765812802397,0.862604,3010.0,3007.8,0.0676]
[1765812802594,0.405504,3009.6,3007.8,0.0676]
[1765812802815,30.0,3009.3,3007.3,0.2052]
[1765812802977,1.0181,3009.5,3008.0,3.32445433]
[1765812803306,1.423604,3009.4,3008.0,0.33244543]
[1765812803458,0.405504,3009.3,3007.5,9.97503427]
[1765812803892,0.4571,3009.3,3007.6,0.2052]
[1765812804028,0.4571,3010.0,3007.7,0.2052]
[1765812804237,0.49370688,3010.7,3007.9,0.98597929]
[1765812804418,0.561,3010.0,3007.7,0.2052]
[1765812804620,2.468543,3009.9,3007.8,0.2052]
[1765812804807,0.561,3010.0,3008.3,0.58047529]
[1765812805008,0.561,3010.0,3007.8,0.78567529]
[1765812805209,0.405504,3009.9,3007.9,0.2052]
[1765812805529,1.59857529,3010.0,3007.8,0.58047529]
[1765812805530,4.30856958,3009.7,3007.8,0.58047529]
[1765812805717,10.95375016,3009.7,3007.9,0.72300747]
[1765812805917,10.95375016,3009.7,3007.8,0.58047529]
[1765812805918,11.41085016,3009.7,3007.8,0.58047529]
[1765812806228,12.481104,3009.5,3007.8,0.58047529]
[1765812806436,7.940577,3009.3,3007.6,3.32487658]
[1765812806645,0.561,3009.2,3007.6,6.6497868]
[1765812806849,0.561,3009.2,3007.7,0.58047529]
[1765812807005,0.862604,3009.1,3007.4,0.0676]
[1765812807348,0.405504,3008.7,3007.1,3.32545391]
[1765812807530,0.58047529,3008.8,3006.8,0.2052]
[1765812808225,0.58047529,3008.8,3006.9,0.405504]
[1765812808424,0.4571,3008.7,3006.9,0.405504]
[1765812808625,0.405504,3008.4,3006.2,6.65290906]
[1765812808932,0.405504,3008.0,3006.2,6.65290906]
[1765812809310,0.405504,3007.9,3006.2,6.65290906]
[1765812809516,6.64937828,3007.8,3006.4,6.65247472]
[1765812809711,0.405504,3007.7,3005.3,0.2052]
[1765812809912,0.405504,3007.3,3005.4,3.36724877]
[1765812810133,0.405504,3007.1,3005.9,3.32671836]
[1765812810334,0.405504,3007.1,3005.3,3.32739362]
[1765812810335,0.1897,3007.2,3005.4,0.58047529]
[1765812810525,10.553891,3007.0,3005.2,0.1377]
[1765812810727,10.553891,3007.0,3002.6,0.178996]
[1765812810728,7.01242944,3006.3,3004.1,6.65755528]
[1765812810913,0.98597929,3006.0,3004.2,0.67952553]
[1765812811233,0.405504,3006.1,3004.2,1.26000082]
[1765812811440,3.32667997,3006.0,3004.4,9.9853548]
[1765812811602,0.4834,3006.1,3004.5,0.58047529]
[1765812811804,3.887559,3006.2,3004.5,0.78567529]
[1765812811805,3.88748963,3006.2,3004.5,0.78567529]
[1765812812004,0.561,3006.2,3004.5,0.58047529]
[1765812812261,0.561,3006.2,3004.7,0.405504]
[1765812812607,0.561,3006.2,3004.9,0.405504]
[1765812812802,0.561,3006.2,3005.1,0.405504]
[1765812813105,0.561,3006.2,3005.0,0.2052]
[1765812813309,0.561,3006.2,3005.1,0.405504]
[1765812813508,0.58047529,3007.9,3005.6,13.612461]
[1765812813509,0.561,3007.0,3005.6,13.612461]
[1765812813760,0.561,3007.0,3005.7,2.44981089]
[1765812814041,0.561,3007.0,3005.7,2.24950689]
[1765812814246,0.561,3007.0,3005.8,0.610704]
[1765812814621,0.561,3007.0,3005.9,0.2052]
[1765812815503,0.561,3007.0,3005.8,0.58047529]
[1765812815931,0.561,3006.9,3005.8,0.58047529]
[1765812816299,0.561,3006.9,3005.9,0.6439719]
[1765812816504,0.561,3007.6,3005.9,0.2052]
[1765812816705,0.561,3007.6,3006.0,0.610704]
[1765812816943,1.0154,3007.6,3005.9,1.68402601]
[1765812817241,1.0154,3007.6,3006.0,0.405504]
[1765812817406,0.561,3007.6,3006.1,0.2052]
[1765812817609,0.561,3007.6,3006.3,0.58047529]
[1765812817810,0.561,3007.6,3006.4,1.05598512]
[1765812818745,3.88599766,3007.6,3006.4,1.05598512]
[1765812819033,0.561,3007.6,3006.5,0.2053]
[1765812819206,0.561,3007.6,3006.6,0.43876416]
[1765812819609,0.561,3007.6,3006.8,0.58047529]
[1765812819805,0.561,3007.6,3006.9,1.07634917]
[1765812820337,0.561,3007.6,3006.9,1.28164917]
[1765812821438,0.56,3008.3,3007.0,0.610804]
[1765812821639,0.56,3008.3,3007.2,0.58047529]
[1765812821849,0.56,3008.7,3007.3,0.610804]
[1765812822262,0.56,3008.7,3007.5,0.405504]
[1765812822715,0.56,3008.7,3007.7,0.405504]
[1765812823110,0.56,3008.7,3007.8,0.2053]
[1765812823746,0.001,3008.8,3007.8,0.2053]
[1765812823747,0.001,3008.8,3008.1,0.405504]
[1765812824043,0.001,3008.8,3008.3,0.405504]
[1765812824431,0.001,3008.8,3008.5,0.405504]
[1765812824829,0.001,3008.8,3008.0,0.58047529]
[1765812824830,0.001,3008.8,3008.6,0.2053]
[1765812825233,0.001,3008.8,3008.7,0.405504]
[1765812825640,0.001,3008.8,3008.7,4.5149739]
[1765812825809,0.001,3008.8,3008.7,10.75834354]
[1765812826012,0.001,3010.1,3008.9,0.405504]
[1765812826417,0.56,3010.5,3009.5,0.98597929]
[1765812826546,0.561,3011.3,3010.5,0.405504]
[1765812827054,0.561,3011.3,3010.4,0.1367]
[1765812827270,4.07024457,3011.3,3010.0,0.1367]
[1765812827475,0.561,3011.3,3010.0,0.1367]
[1765812827637,0.4544,3011.2,3009.6,0.58047529]
[1765812827966,0.7494,3011.3,3009.7,1.27286086]
[1765812828138,0.7494,3011.3,3009.8,0.04]
[1765812828139,4.07022489,3011.3,3009.8,0.04]
[1765812828656,7.39109097,3011.3,3009.8,0.2443]
[1765812828836,3.88189157,3011.3,3009.9,0.405504]
[1765812829023,0.561,3011.3,3009.9,0.405504]
[1765812829225,0.001,3011.3,3010.1,0.98597929]
[1765812829441,0.001,3011.3,3009.8,0.22933362]
[1765812829442,0.001,3011.3,3010.3,0.405504]
[1765812829654,0.001,3011.3,3010.5,9.96512205]
[1765812829852,0.001,3011.3,3010.6,0.58047529]
[1765812830830,0.001,3011.3,3010.7,0.2043]
[1765812831370,0.001,3011.3,3010.8,0.405504]
[1765812831731,0.001,3011.3,3011.0,0.98597929]
[1765812832033,0.0002,3011.3,3011.0,0.98597929]
[1765812832352,0.0002,3011.3,3011.1,0.2043]
[1765812832542,0.0002,3011.3,3011.2,0.405504]
[1765812832932,0.0002,3011.3,3011.2,0.2043]
[1765812833260,0.0002,3011.3,3011.2,0.04]
[1765812833775,0.0002,3011.3,3011.2,3.94141046]
[1765812834152,0.0002,3011.3,3011.2,3.90141046]
[1765812835177,0.0002,3011.3,3010.9,3.32122356]
[1765812835375,0.0002,3011.3,3010.5,3.32169567]
[1765812835544,0.0002,3011.3,3010.6,0.04]
[1765812835870,0.0002,3011.3,3010.6,3.36157705]
[1765812836043,0.0002,3011.3,3010.1,0.2043]
[1765812836239,0.0002,3011.3,3010.6,0.58047529]
[1765812836444,0.0002,3011.3,3010.6,3.32158064]
[1765812836656,0.4544,3011.2,3010.4,0.58047529]
[1765812836946,0.4544,3011.2,3010.5,3.90207526]
[1765812837249,0.0002,3011.3,3010.6,3.32156622]
[1765812837449,0.56,3011.1,3010.6,3.32156622]
[1765812837776,0.56,3011.1,3010.4,0.58047529]
[1765812838151,7.20209301,3011.1,3009.6,0.2043]
[1765812838356,0.56,3011.1,3010.2,9.96601125]
[1765812838547,0.56,3011.1,3010.3,1.57707642]
[1765812839155,0.56,3011.1,3010.3,0.58047529]
[1765812839354,0.0002,3011.3,3010.3,0.58047529]
[1765812839355,0.56,3011.0,3010.3,0.58047529]
[1765812839746,0.56,3011.0,3010.5,0.58047529]
[1765812840073,0.0002,3011.3,3010.6,0.405504]
[1765812840273,0.0002,3011.3,3010.5,0.58047529]
[1765812840472,0.0002,3011.3,3010.7,0.405504]
[1765812840675,0.0002,3011.3,3010.6,0.2043]
[1765812840888,0.0002,3011.3,3010.7,0.405504]
[1765812841046,0.001,3011.7,3010.9,0.98597929]
[1765812841250,0.001,3012.7,3011.3,0.405504]
[1765812841496,0.001,3012.7,3011.0,0.2021]
[1765812841808,3.3202817,3012.7,3011.2,0.58047529]
[1765812842094,0.001,3012.7,3011.3,0.405504]
[1765812842294,0.001,3012.7,3011.3,0.647604]
[1765812842504,0.001,3012.7,3011.5,0.405504]
[1765812842708,0.001,3012.7,3011.4,0.2021]
[1765812842996,0.56,3012.5,3011.4,0.2021]
[1765812843183,0.56,3012.5,3011.5,0.405504]
[1765812843387,0.001,3012.7,3011.5,0.405504]
[1765812843388,0.001,3012.7,3012.4,0.0654]
[1765812843808,0.001,3012.7,3012.0,0.0654]
[1765812844708,0.4905,3012.5,3011.4,0.0654]
[1765812844871,0.4905,3012.5,3011.1,3.38639837]
[1765812845076,0.405504,3012.4,3011.3,0.62047529]
[1765812845299,0.405504,3012.4,3011.6,3.32043264]
[1765812845496,0.405504,3012.4,3011.3,0.04]
[1765812845805,23.65931672,3012.1,3011.3,0.04]
[1765812846014,0.405504,3011.7,3011.3,0.04]
[1765812846182,0.405504,3011.7,3009.1,0.559]
[1765812846183,7.01242944,3011.9,3009.4,3.5249597]
[1765812846383,0.405504,3011.7,3010.1,0.58047529]
[1765812846589,0.559,3011.6,3010.1,3.90259173]
[1765812846785,0.964504,3011.5,3009.9,0.2021]
[1765812847116,1.0495,3011.4,3010.0,0.58047529]
[1765812847282,1.0495,3011.4,3009.8,0.2021]
[1765812847283,0.559,3011.3,3009.8,0.2021]
[1765812847478,0.4905,3011.3,3009.9,3.3223239]
[1765812847703,3.87994055,3011.2,3009.7,0.78257529]
[1765812847879,7.2008811,3011.2,3010.2,0.58047529]
[1765812848078,3.87994055,3011.2,3010.2,0.58047529]
[1765812848391,3.87995041,3011.2,3010.2,0.58047529]
[1765812848589,0.1847,3010.6,3009.3,0.002]
[1765812848816,0.7437,3010.6,3009.5,3.32274421]
[1765812849069,0.7437,3010.6,3009.3,0.002]
[1765812849070,0.6752,3010.6,3009.3,0.002]
[1765812849231,1.2342,3010.6,3009.5,0.58047529]
[1765812849571,0.6752,3010.6,3009.3,0.002]
[1765812849861,4.96130102,3010.6,3009.3,0.002]
[1765812850062,4.96130102,3010.6,3009.3,0.58247529]
[1765812850637,4.96130102,3010.6,3009.3,0.002]
[1765812850961,4.96130102,3010.6,3009.3,0.58247529]
[1765812851371,4.06529702,3010.6,3009.3,0.58247529]
[1765812851548,4.55579702,3010.6,3009.3,0.58247529]
[1765812851865,4.96130102,3010.6,3009.5,0.58047529]
[1765812852074,23.93575902,3010.6,3009.3,0.002]
[1765812852245,0.405504,3010.4,3009.3,0.002]
[1765812852445,0.405504,3010.2,3009.3,0.002]
[1765812852649,0.58047529,3010.3,3009.3,0.002]
[1765812852650,0.405504,3010.0,3009.3,0.002]
[1765812852945,1.07097529,3010.3,3009.3,0.002]
[1765812852946,0.590204,3009.4,3009.3,0.002]
[1765812853146,0.405504,3009.2,3007.6,3.3248017]
[1765812853345,0.405504,3009.0,3007.0,0.2081]
[1765812853568,15.020388,3008.9,3007.0,0.2081]
[1765812853757,0.1847,3008.2,3007.1,3.32546307]
[1765812853958,1.2352,3008.2,3007.1,3.32546307]
[1765812854467,1.640704,3008.2,3007.0,3.32554513]
[1765812854680,1.640704,3008.2,3006.6,0.0694]
[1765812854883,1.640704,3008.2,3007.0,3.32555849]
[1765812855375,9.97141527,3008.6,3007.0,6.65114732]
[1765812855376,7.13811018,3008.6,3007.0,6.65114732]
[1765812855669,0.405504,3008.1,3006.6,0.2109]
[1765812855869,3.32402606,3008.4,3006.8,0.58047529]
[1765812856072,0.56,3008.3,3006.8,0.58047529]
[1765812856376,0.03987572,3007.9,3006.8,0.79137529]
[1765812856552,0.03987572,3007.9,3007.0,0.405504]
[1765812856750,0.56,3008.2,3007.2,0.405504]
[1765812856949,0.56,3008.2,3007.1,0.2109]
[1765812856950,0.03987572,3009.2,3008.5,0.1395]
[1765812857170,3.32228465,3010.0,3008.5,0.1395]
[1765812857171,0.56,3009.1,3008.5,0.1395]
[1765812857547,0.56,3009.1,3007.6,0.2109]
[1765812857748,0.56,3009.1,3007.9,0.58047529]
[1765812857749,0.03987572,3009.0,3007.9,0.58047529]
[1765812858290,0.98597929,3008.7,3006.9,0.74431862]
[1765812858568,0.56,3008.6,3007.4,3.32511947]
[1765812858757,0.896004,3008.9,3007.6,3.32490969]
[1765812858938,0.896004,3008.9,3007.2,3.32527789]
[1765812858939,0.03987572,3008.3,3007.7,3.3247573]
[1765812859146,0.56,3008.2,3007.7,3.3247573]
[1765812859646,1.0505,3008.2,3007.4,3.3250448]
[1765812859841,1.0505,3008.2,3006.9,0.002]
[1765812860049,3.36404074,3008.3,3006.9,0.002]
[1765812860050,0.56,3008.1,3007.0,0.54366358]
[1765812860256,0.56,3008.1,3007.0,0.33276358]
[1765812860457,0.56,3008.0,3007.0,0.33276358]
[1765812860661,0.56,3007.9,3007.1,0.2109]
[1765812861082,0.56,3007.9,3007.0,0.33276358]
[1765812861585,0.56,3007.9,3007.1,0.2109]
[1765812862082,0.56,3007.9,3007.3,0.58047529]
[1765812862983,0.56,3007.9,3007.2,0.58047529]
[1765812863184,3.88457888,3007.9,3007.2,0.58047529]
[1765812863351,0.03987572,3008.0,3007.2,0.58047529]
[1765812863677,0.56,3007.9,3007.2,0.58047529]
[1765812863879,0.56,3007.8,3007.2,0.58047529]
[1765812864083,0.56,3007.8,3007.3,3.32524191]
[1765812864259,3.3643438,3008.0,3007.2,6.6506839]
[1765812864260,0.03987572,3008.0,3007.2,6.6506839]
[1765812864462,0.56,3007.9,3007.2,3.32533142]
[1765812864847,0.03987572,3007.8,3007.2,3.32533142]
[1765812865282,0.03987572,3007.8,3007.2,6.6506839]
[1765812865481,0.56,3007.7,3007.2,6.6506839]
[1765812865978,0.56,3007.7,3006.9,0.58247529]
[1765812865979,0.56,3007.7,3007.1,0.58047529]
[1765812866183,0.22457572,3008.3,3007.1,0.58047529]
[1765812866184,3.54871527,3008.3,3007.1,0.58047529]
[1765812866490,0.56,3008.2,3007.1,0.58047529]
[1765812866787,0.56,3008.2,3007.3,0.002]
[1765812867149,0.56,3008.2,3007.3,0.2129]
[1765812867356,0.56,3008.2,3007.4,0.405504]
[1765812867865,3.36306408,3009.2,3007.5,0.2109]
[1765812868063,3.3619831,3010.2,3007.9,16.963497]
[1765812868064,3.32214876,3010.1,3007.9,16.963497]
[1765812868271,0.03987572,3009.7,3008.0,1.79494763]
[1765812868458,0.03987572,3009.7,3007.7,0.58047529]
[1765812868459,0.56,3009.6,3008.2,0.405504]
[1765812868857,0.56,3009.6,3008.4,0.405504]
[1765812869088,0.03987572,3010.4,3009.5,0.1395]
[1765812869296,0.56,3010.4,3009.5,0.1395]
[1765812869471,0.56,3010.4,3009.6,0.244127]
[1765812869665,0.56,3010.4,3009.6,0.2109]
[1765812870092,3.32189368,3011.3,3009.5,0.1395]
[1765812870093,0.56,3010.3,3009.8,0.58047529]
[1765812870789,0.56,3010.3,3009.9,0.2109]
[1765812870961,0.56,3010.3,3009.8,0.58047529]
[1765812871161,0.56,3010.3,3009.9,0.2109]
[1765812871364,0.56,3010.3,3009.8,0.58047529]
[1765812871993,0.56,3010.3,3009.5,0.1395]
[1765812872205,0.56,3010.3,3009.1,0.1395]
[1765812872496,0.56,3010.3,3009.2,0.04]
[1765812872686,0.03987572,3010.2,3009.6,0.58047529]
[1765812872886,0.03987572,3010.2,3009.2,0.04]
[1765812873196,0.03987572,3009.8,3008.8,0.1395]
[1765812873368,0.03987572,3010.0,3008.8,0.1395]
[1765812873561,0.559,3009.9,3009.2,3.3230679]
[1765812873766,0.03987572,3009.7,3008.2,0.3504]
[1765812873966,0.03987572,3009.7,3008.2,0.1395]
[1765812873967,6.64562218,3009.5,3008.2,0.1395]
[1765812874477,0.4974,3009.4,3008.2,3.32420013]
[1765812874669,0.4974,3009.4,3008.2,0.58047529]
[1765812874870,0.4974,3009.4,3008.2,3.32424524]
[1765812875570,0.405504,3009.3,3007.9,3.32455754]
[1765812875765,0.405504,3009.3,3006.3,3.32633563]
[1765812875766,0.405504,3008.9,3006.9,0.2129]
[1765812875999,3.32369461,3008.7,3006.9,0.79337529]
[1765812876201,9.05170829,3008.6,3006.9,0.002]
[1765812876402,0.4974,3008.6,3007.0,0.002]
[1765812876588,0.559,3008.5,3007.0,0.58247529]
[1765812876897,1.07787529,3008.6,3007.0,0.58247529]
[1765812877203,1.0564,3008.5,3007.0,0.002]
[1765812877697,0.4974,3008.4,3007.0,0.58247529]
[1765812878082,0.58047529,3008.2,3007.0,0.002]
[1765812878280,0.58047529,3008.2,3007.0,9.97868706]
[1765812878485,0.559,3008.1,3007.1,0.79137529]
[1765812878779,0.5582,3008.1,3007.1,0.79137529]
[1765812878983,0.5582,3008.1,3007.2,0.405504]
[1765812879382,0.5582,3008.1,3007.1,0.79137529]
[1765812879583,0.5582,3008.1,3007.1,0.58047529]
[1765812879785,3.32409661,3008.4,3007.1,0.58047529]
[1765812879985,0.559,3008.0,3007.1,0.58047529]
[1765812880188,0.559,3008.0,3007.3,0.58247529]
[1765812880600,0.4974,3009.2,3007.5,0.405504]
[1765812880773,0.559,3009.1,3007.5,0.405504]
[1765812880979,0.559,3009.1,3007.7,0.405504]
[1765812881196,3.32292151,3009.4,3007.7,0.405504]
[1765812881411,0.559,3009.3,3007.9,0.405504]
[1765812881924,0.559,3009.3,3008.0,0.2109]
[1765812882077,3.32325279,3009.1,3008.2,0.58047529]
[1765812882286,0.4974,3009.0,3007.3,0.2129]
[1765812882597,0.03987572,3009.7,3009.0,0.1395]
[1765812882777,0.559,3009.6,3008.7,0.1395]
[1765812883290,0.559,3009.6,3008.7,0.3504]
[1765812883485,0.559,3009.6,3008.8,0.405504]
[1765812883692,0.559,3009.6,3008.8,0.616404]
[1765812883887,0.559,3009.6,3008.9,0.2109]
[1765812884088,0.559,3009.6,3009.1,0.58047529]
[1765812884276,0.559,3009.6,3009.2,1.0550565]
[1765812884482,0.559,3009.6,3009.2,1.2659565]
[1765812884810,0.559,3009.6,3009.1,0.58047529]
[1765812885107,0.559,3009.6,3008.2,0.1395]
[1765812885108,0.6889,3009.5,3008.2,0.1395]
[1765812885277,0.77197529,3009.5,3008.5,3.32389238]
[1765812885478,0.1915,3009.5,3008.2,0.1395]
[1765812885681,0.6889,3009.5,3008.3,0.58047529]
[1765812885934,0.6889,3009.5,3008.7,3.32365161]
[1765812886208,4.01172366,3009.5,3008.3,6.6482731]
[1765812886586,3.32282366,3009.5,3008.3,6.6482731]
[1765812886778,0.56,3009.6,3008.4,1.2592526]
[1765812886980,3.88273705,3009.6,3008.4,1.2592526]
[1765812887208,0.56,3009.6,3008.4,1.2592526]
[1765812887412,0.56,3009.6,3008.5,1.35515622]
[1765812887910,0.56,3009.6,3008.6,0.616404]
[1765812888214,0.56,3009.6,3008.8,0.58047529]
[1765812888910,0.56,3009.6,3008.9,0.2109]
[1765812890197,0.56,3009.6,3009.1,0.58047529]
[1765812890581,0.1915,3009.5,3008.1,3.53720059]
[1765812890784,0.1915,3009.5,3008.3,0.2109]
[1765812891102,0.1915,3009.5,3008.7,3.32362954]
[1765812891281,0.1915,3009.5,3008.4,3.32400036]
[1765812891578,0.4974,3009.4,3008.6,3.32378444]
[1765812891777,0.4974,3009.4,3008.4,3.32398109]
[1765812891982,0.4974,3009.4,3008.5,3.32391088]
[1765812892208,3.32303193,3009.3,3008.3,3.32413655]
[1765812892381,0.4974,3009.2,3008.3,6.6482731]
[1765812892584,0.23137572,3009.5,3008.3,9.97240965]
[1765812892585,3.5143432,3009.5,3008.3,9.97240965]